fUST/lending_fUST_20240905
["ID","MTS","AMOUNT","RATE_DAILY","PERIOD"]
[337196471,1725497454410,-500.0,0.00022191,2]
[337196473,1725497454420,-500.0,0.00022191,2]
[337196475,1725497454429,-500.0,0.00022191,2]
[337196477,1725497454440,-1888.23,0.00022191,2]
[337196479,1725497454450,-500.0,0.00022191,2]
[337196481,1725497454461,-500.0,0.00022191,2]
[337196483,1725497454472,-500.0,0.00022191,2]
[337196485,1725497454483,-873.57,0.00022191,2]
[337196487,1725497454492,-636.98,0.00022191,2]
[337196489,1725497454502,-500.0,0.00022191,2]
[337196492,1725497454512,-500.0,0.00022191,2]
[337196494,1725497454522,-619.88,0.00022191,2]
[337196496,1725497454531,-500.0,0.00022191,2]
[337196498,1725497454545,-500.0,0.00022191,2]
[337196500,1725497454555,-500.0,0.00022191,2]
[337196502,1725497454564,-500.0,0.00022191,2]
[337196504,1725497454574,-685.94,0.00022191,2]
[337196506,1725497454584,-500.0,0.00022191,2]
[337196508,1725497454595,-500.0,0.00022191,2]
[337196510,1725497454604,-500.0,0.00022191,2]
[337196512,1725497454614,-500.0,0.00022191,2]
[337196514,1725497454624,-500.0,0.00022191,2]
[337196516,1725497454634,-1504.33,0.00022191,2]
[337196518,1725497454644,-641.23665647,0.00022191,2]
[337196520,1725497454654,-500.0,0.00022191,2]
[337196522,1725497454664,-500.0,0.00022191,2]
[337196524,1725497454674,-500.0,0.00022191,2]
[337196526,1725497454685,-650.79,0.00022191,2]
[337196528,1725497454695,-502.74539724,0.00022191,2]
[337196530,1725497454705,-500.0,0.00022191,2]
[337196533,1725497454714,-500.0,0.00022191,2]
[337196535,1725497454733,-736.32,0.00022191,2]
[337196537,1725497454743,-509.63,0.00022191,2]
[337196539,1725497454753,-642.42,0.00022191,2]
[337196541,1725497454763,-500.0,0.00022191,2]
[337196543,1725497454773,-740.99,0.00022191,2]
[337196545,1725497454783,-500.0,0.00022191,2]
[337196547,1725497454793,-500.0,0.00022191,2]
[337196549,1725497454802,-640.95055076,0.00022191,2]
[337196551,1725497454812,-500.0,0.00022191,2]
[337196553,1725497454822,-500.0,0.00022191,2]
[337196555,1725497454832,-500.0,0.00022191,2]
[337196557,1725497454841,-1142.19,0.00022191,2]
[337196560,1725497454852,-500.0,0.00022191,2]
[337196562,1725497454862,-488.33642122,0.00022191,2]
[337196564,1725497454872,-500.0,0.00022191,2]
[337196566,1725497454883,-500.0,0.00022191,2]
[337196568,1725497454895,-243.02935337,0.00022191,2]
[337196570,1725497454905,-1328.19,0.00022191,2]
[337196572,1725497454914,-500.0,0.00022191,2]
[337196574,1725497454925,-500.0,0.00022191,2]
[337196576,1725497454935,-500.0,0.00022191,2]
[337196579,1725497454946,-511.28,0.00022191,2]
[337196581,1725497454956,-500.0,0.00022191,2]
[337196583,1725497454969,-508.54773814,0.00022191,2]
[337196585,1725497454978,-500.0,0.00022191,2]
[337196587,1725497454988,-500.0,0.00022191,2]
[337196589,1725497454999,-500.0,0.00022191,2]
[337196591,1725497455010,-500.0,0.00022191,2]
[337196593,1725497455020,-1031.06,0.00022191,2]
[337196595,1725497455030,-500.0,0.00022191,2]
[337196597,1725497455042,-497.82196332,0.00022191,2]
[337196599,1725497455052,-505.97,0.00022191,2]
[337196601,1725497455062,-502.66915446,0.00022191,2]
[337196603,1725497455071,-505.48435619,0.00022191,2]
[337196605,1725497455082,-500.0,0.00022191,2]
[337196607,1725497455092,-1096.87,0.00022191,2]
[337196610,1725497455101,-500.0,0.00022191,2]
[337196612,1725497455111,-500.0,0.00022191,2]
[337196614,1725497455121,-504.00722914,0.00022191,2]
[337196616,1725497455131,-500.0,0.00022191,2]
[337196618,1725497455140,-500.0,0.00022191,2]
[337196620,1725497455150,-500.0,0.00022191,2]
[337196622,1725497455161,-500.0,0.00022191,2]
[337196624,1725497455171,-505.28799388,0.00022191,2]
[337196626,1725497455181,-667.06,0.00022191,2]
[337196628,1725497455191,-1004.26,0.00022191,2]
[337196630,1725497455201,-500.0,0.00022191,2]
[337196632,1725497455210,-500.0,0.00022191,2]
[337196634,1725497455222,-500.0,0.00022191,2]
[337196636,1725497455232,-500.0,0.00022191,2]
[337196638,1725497455241,-500.0,0.00022191,2]
[337196640,1725497455251,-13214.96,0.00022191,2]
[337196642,1725497455261,-500.0,0.00022191,2]
[337196644,1725497455271,-500.0,0.00022191,2]
[337196646,1725497455281,-500.0,0.00022191,2]
[337196649,1725497455291,-500.0,0.00022191,2]
[337196651,1725497455301,-500.0,0.00022191,2]
[337196653,1725497455311,-500.0,0.00022191,2]
[337196655,1725497455321,-491.69602421,0.00022191,2]
[337196657,1725497455331,-1823.83,0.00022191,2]
[337196659,1725497455341,-500.0,0.00022191,2]
[337196661,1725497455352,-500.0,0.00022191,2]
[337196663,1725497455362,-586.1707135,0.00022191,2]
[337196665,1725497455372,-670.2,0.00022191,2]
[337196667,1725497455382,-502.69,0.00022191,2]
[337196669,1725497455392,-500.0,0.00022191,2]
[337196671,1725497455402,-1754.45,0.00022191,2]
[337196673,1725497455412,-500.0,0.00022191,2]
[337196676,1725497455422,-380.78531172,0.00022191,2]
[337196678,1725497455432,-500.0,0.00022191,2]
[337196680,1725497455443,-500.0,0.00022191,2]
[337196681,1725497455453,-500.0,0.00022191,2]
[337196684,1725497455463,-500.0,0.00022191,2]
[337196686,1725497455476,-500.0,0.00022191,2]
[337196688,1725497455486,-500.0,0.00022191,2]
[337196690,1725497455496,-500.0,0.00022191,2]
[337196692,1725497455506,-777.94,0.00022191,2]
[337196694,1725497455516,-756.24,0.00022191,2]
[337196696,1725497455526,-609.26083193,0.00022191,2]
[337196698,1725497455538,-925.4,0.00022191,2]
[337196700,1725497455547,-570.95,0.00022191,2]
[337196702,1725497455557,-845.16,0.00022191,2]
[337196704,1725497455567,-500.0,0.00022191,2]
[337196706,1725497455577,-500.0,0.00022191,2]
[337196708,1725497455587,-504.36381868,0.00022191,2]
[337196710,1725497455597,-500.0,0.00022191,2]
[337196712,1725497455606,-1100.67,0.00022191,2]
[337196714,1725497455617,-500.0,0.00022191,2]
[337196717,1725497455627,-500.0,0.00022191,2]
[337196719,1725497455637,-503.85126385,0.00022191,2]
[337196721,1725497455647,-961.38,0.00022191,2]
[337196723,1725497455658,-500.0,0.00022191,2]
[337196725,1725497455667,-503.51760682,0.00022191,2]
[337196727,1725497455677,-541.24085466,0.00022191,2]
[337196729,1725497455687,-531.09425275,0.00022191,2]
[337196731,1725497455697,-1035.11,0.00022191,2]
[337196733,1725497455707,-579.07,0.00022191,2]
[337196735,1725497455717,-500.0,0.00022191,2]
[337196737,1725497455728,-3500.31,0.00022191,2]
[337196739,1725497455739,-500.0,0.00022191,2]
[337196741,1725497455749,-500.0,0.00022191,2]
[337196743,1725497455760,-815.35,0.00022191,2]
[337196746,1725497455770,-500.0,0.00022191,2]
[337196748,1725497455780,-221.13616543,0.00022191,2]
[337196750,1725497455790,-500.0,0.00022191,2]
[337196752,1725497455800,-500.0,0.00022191,2]
[337196754,1725497455809,-500.0,0.00022191,2]
[337196756,1725497455819,-1462.98,0.00022191,2]
[337196758,1725497455829,-500.0,0.00022191,2]
[337196760,1725497455839,-587.5,0.00022191,2]
[337196762,1725497455849,-500.0,0.00022191,2]
[337196764,1725497455859,-895.62,0.00022191,2]
[337196766,1725497455869,-500.0,0.00022191,2]
[337196768,1725497455880,-500.0,0.00022191,2]
[337196770,1725497455890,-500.0,0.00022191,2]
[337196773,1725497455899,-6947.79,0.00022191,2]
[337196775,1725497455909,-500.0,0.00022191,2]
[337196777,1725497455919,-500.0,0.00022191,2]
[337196779,1725497455929,-500.0,0.00022191,2]
[337196781,1725497455939,-500.0,0.00022191,2]
[337196783,1725497455948,-500.0,0.00022191,2]
[337196785,1725497455959,-200.0,0.00022191,2]
[337196787,1725497455969,-1159.34,0.00022191,2]
[337196789,1725497455980,-500.0,0.00022191,2]
[337196791,1725497455990,-601.21,0.00022191,2]
[337196793,1725497456001,-500.0,0.00022191,2]
[337196795,1725497456012,-731.93,0.00022191,2]
[337196797,1725497456022,-500.0,0.00022191,2]
[337196799,1725497456032,-500.0,0.00022191,2]
[337196801,1725497456042,-600.67,0.00022191,2]
[337196804,1725497456053,-500.0,0.00022191,2]
[337196805,1725497456063,-9050.54,0.00022191,2]
[337196807,1725497456073,-4619.47,0.00022191,2]
[337196809,1725497456083,-500.0,0.00022191,2]
[337196811,1725497456093,-500.0,0.00022191,2]
[337196814,1725497456104,-500.0,0.00022191,2]
[337196816,1725497456115,-500.0,0.00022191,2]
[337196818,1725497456124,-1669.0,0.00022191,2]
[337196820,1725497456135,-9104.15,0.00022191,2]
[337196822,1725497456145,-500.0,0.00022191,2]
[337196824,1725497456156,-500.0,0.00022191,2]
[337196826,1725497456166,-8675.99,0.00022191,2]
[337196828,1725497456176,-500.0,0.00022191,2]
[337196831,1725497456190,-500.0,0.00022191,2]
[337196833,1725497456200,-500.0,0.00022191,2]
[337196835,1725497456209,-1449.57,0.00022191,2]
[337196837,1725497456220,-500.0,0.00022191,2]
[337196839,1725497456229,-505.75905998,0.00022191,2]
[337196841,1725497456240,-500.0,0.00022191,2]
[337196843,1725497456250,-500.0,0.00022191,2]
[337196845,1725497456259,-1341.06,0.00022191,2]
[337196847,1725497456269,-500.0,0.00022191,2]
[337196850,1725497456279,-565.48,0.00022191,2]
[337196852,1725497456288,-5060.31,0.00022191,2]
[337196854,1725497456297,-500.0,0.00022191,2]
[337196856,1725497456307,-500.0,0.00022191,2]
[337196858,1725497456316,-500.0,0.00022191,2]
[337196860,1725497456326,-500.0,0.00022191,2]
[337196862,1725497456336,-500.0,0.00022191,2]
[337196864,1725497456346,-500.0,0.00022191,2]
[337196866,1725497456355,-500.0,0.00022191,2]
[337196868,1725497456367,-500.0,0.00022191,2]
[337196870,1725497456376,-307.10811471,0.00022191,2]
[337196871,1725497456386,-1014.45,0.00022191,2]
[337196873,1725497456395,-538.32,0.00022191,2]
[337196875,1725497456406,-500.0,0.00022191,2]
[337196877,1725497456415,-510.35,0.00022191,2]
[337196879,1725497456425,-1471.62,0.00022191,2]
[337196881,1725497456435,-500.0,0.00022191,2]
[337196883,1725497456445,-500.0,0.00022191,2]
[337196885,1725497456455,-500.0,0.00022191,2]
[337196887,1725497456466,-655.18,0.00022191,2]
[337196889,1725497456476,-527.48220612,0.00022191,2]
[337196891,1725497456486,-500.0,0.00022191,2]
[337196893,1725497456495,-500.0,0.00022191,2]
[337196895,1725497456505,-500.0,0.00022191,2]
[337196897,1725497456515,-500.0,0.00022191,2]
[337196899,1725497456524,-517.82,0.00022191,2]
[337196901,1725497456535,-500.0,0.00022191,2]
[337196903,1725497456547,-500.0,0.00022191,2]
[337196926,1725497456758,-543.14,0.00022191,2]
[337196929,1725497456776,-501.23280215,0.00022191,2]
[337196931,1725497456785,-629.45,0.00022191,2]
[337196932,1725497456795,-500.0,0.00022191,2]
[337196934,1725497456804,-500.0,0.00022191,2]
[337196936,1725497456813,-500.0,0.00022191,2]
[337196938,1725497456822,-500.0,0.00022191,2]
[337196940,1725497456832,-8344.97,0.00022191,2]
[337196942,1725497456842,-4536.03,0.00022191,2]
[337196944,1725497456851,-500.0,0.00022191,2]
[337196946,1725497456862,-1953.67,0.00022191,2]
[337196948,1725497456872,-500.0,0.00022191,2]
[337196950,1725497456881,-500.0,0.00022191,2]
[337196952,1725497456891,-1027.04,0.00022191,2]
[337196955,1725497456900,-500.0,0.00022191,2]
[337196957,1725497456910,-1248.94,0.00022191,2]
[337196959,1725497456920,-829.6,0.00022191,2]
[337196961,1725497456930,-500.0,0.00022191,2]
[337196963,1725497456939,-500.0,0.00022191,2]
[337196965,1725497456949,-500.0,0.00022191,2]
[337196967,1725497456958,-503.35742525,0.00022191,2]
[337196969,1725497456967,-500.0,0.00022191,2]
[337196971,1725497456978,-2304.84,0.00022191,2]
[337196973,1725497456988,-500.0,0.00022191,2]
[337196975,1725497456998,-510.91758958,0.00022191,2]
[337196977,1725497457008,-1633.29,0.00022191,2]
[337196979,1725497457018,-500.0,0.00022191,2]
[337196981,1725497457027,-500.0,0.00022191,2]
[337196983,1725497457037,-500.0,0.00022191,2]
[337196985,1725497457047,-500.0,0.00022191,2]
[337196987,1725497457057,-970.28,0.00022191,2]
[337196989,1725497457066,-500.0,0.00022191,2]
[337196991,1725497457076,-500.0,0.00022191,2]
[337196994,1725497457086,-500.0,0.00022191,2]
[337196996,1725497457096,-1064.34,0.00022191,2]
[337196998,1725497457105,-500.0,0.00022191,2]
[337197000,1725497457115,-500.0,0.00022191,2]
[337197002,1725497457124,-1214.07,0.00022191,2]
[337197004,1725497457134,-500.0,0.00022191,2]
[337197006,1725497457143,-1253.82,0.00022191,2]
[337197008,1725497457153,-500.0,0.00022191,2]
[337197010,1725497457162,-500.0,0.00022191,2]
[337197012,1725497457172,-500.0,0.00022191,2]
[337197014,1725497457183,-1066.26,0.00022191,2]
[337197016,1725497457193,-4863.44,0.00022191,2]
[337197018,1725497457203,-501.55195589,0.00022191,2]
[337197020,1725497457212,-500.0,0.00022191,2]
[337197022,1725497457222,-500.0,0.00022191,2]
[337197024,1725497457231,-505.09638183,0.00022191,2]
[337197026,1725497457240,-500.0,0.00022191,2]
[337197028,1725497457250,-500.0,0.00022191,2]
[337197030,1725497457260,-500.0,0.00022191,2]
[337197033,1725497457269,-627.47,0.00022191,2]
[337197035,1725497457279,-1157.36,0.00022191,2]
[337197037,1725497457289,-771.54,0.00022191,2]
[337197039,1725497457299,-500.0,0.00022191,2]
[337197041,1725497457309,-500.0,0.00022191,2]
[337197043,1725497457319,-500.0,0.00022191,2]
[337197045,1725497457328,-519.65280557,0.00022191,2]
[337197047,1725497457338,-500.0,0.00022191,2]
[337197048,1725497457347,-500.0,0.00022191,2]
[337197050,1725497457358,-500.0,0.00022191,2]
[337197053,1725497457368,-911.69,0.00022191,2]
[337197055,1725497457380,-714.83,0.00022191,2]
[337197057,1725497457389,-6016.12,0.00022191,2]
[337197059,1725497457401,-500.0,0.00022191,2]
[337197061,1725497457412,-500.0,0.00022191,2]
[337197063,1725497457422,-500.0,0.00022191,2]
[337197065,1725497457434,-500.99126401,0.00022191,2]
[337197067,1725497457446,-888.12,0.00022191,2]
[337197069,1725497457455,-500.0,0.00022191,2]
[337197071,1725497457466,-500.0,0.00022191,2]
[337197073,1725497457477,-500.0,0.00022191,2]
[337197076,1725497457487,-655.4,0.00022191,2]
[337197078,1725497457496,-1014.25,0.00022191,2]
[337197080,1725497457506,-1406.92,0.00022191,2]
[337197082,1725497457516,-500.0,0.00022191,2]
[337197084,1725497457526,-500.0,0.00022191,2]
[337197086,1725497457539,-833.54,0.00022191,2]
[337197088,1725497457549,-1487.95,0.00022191,2]
[337197090,1725497457558,-506.88496892,0.00022191,2]
[337197092,1725497457568,-504.88052544,0.00022191,2]
[337197094,1725497457578,-500.0,0.00022191,2]
[337197096,1725497457588,-500.0,0.00022191,2]
[337197098,1725497457598,-405.27145761,0.00022191,2]
[337197100,1725497457608,-3461.26,0.00022191,2]
[337197102,1725497457617,-500.0,0.00022191,2]
[337197104,1725497457627,-503.06564682,0.00022191,2]
[337197106,1725497457636,-500.0,0.00022191,2]
[337197108,1725497457646,-2030.26,0.00022191,2]
[337197110,1725497457656,-500.0,0.00022191,2]
[337197112,1725497457667,-500.0,0.00022191,2]
[337197114,1725497457677,-500.0,0.00022191,2]
[337197116,1725497457686,-500.0,0.00022191,2]
[337197119,1725497457696,-1462.9,0.00022191,2]
[337197121,1725497457706,-500.0,0.00022191,2]
[337197123,1725497457716,-1010.64,0.00022191,2]
[337197125,1725497457731,-500.0,0.00022191,2]
[337197127,1725497457740,-589.45849333,0.00022191,2]
[337197129,1725497457751,-618.08,0.00022191,2]
[337197131,1725497457760,-500.0,0.00022191,2]
[337197133,1725497457770,-503.74499091,0.00022191,2]
[337197135,1725497457779,-1063.35,0.00022191,2]
[337197137,1725497457788,-500.0,0.00022191,2]
[337197139,1725497457797,-1204.36,0.00022191,2]
[337197141,1725497457807,-727.27,0.00022191,2]
[337197143,1725497457816,-573.77,0.00022191,2]
[337197145,1725497457825,-15456.13,0.00022191,2]
[337197147,1725497457834,-500.0,0.00022191,2]
[337197149,1725497457843,-500.0,0.00022191,2]
[337197151,1725497457855,-500.0,0.00022191,2]
[337197153,1725497457865,-500.0,0.00022191,2]
[337197155,1725497457876,-500.0,0.00022191,2]
[337197157,1725497457885,-157.78905862,0.00022191,2]
[337197159,1725497457895,-7312.31,0.00022191,2]
[337197161,1725497457905,-500.0,0.00022191,2]
[337197164,1725497457915,-1029.47,0.00022191,2]
[337197165,1725497457925,-501.79,0.00022191,2]
[337197168,1725497457935,-500.0,0.00022191,2]
[337197170,1725497457944,-503.24,0.00022191,2]
[337197171,1725497457954,-565.13,0.00022191,2]
[337197174,1725497457964,-500.0,0.00022191,2]
[337197176,1725497457975,-8393.46,0.00022191,2]
[337197178,1725497457984,-1657.26,0.00022191,2]
[337197180,1725497457994,-648.15,0.00022191,2]
[337197182,1725497458006,-500.0,0.00022191,2]
[337197184,1725497458016,-500.0,0.00022191,2]
[337197186,1725497458027,-642.9,0.00022191,2]
[337197188,1725497458036,-3868.18,0.00022191,2]
[337197190,1725497458046,-500.0,0.00022191,2]
[337197192,1725497458056,-583.64,0.00022191,2]
[337197194,1725497458066,-1462.07,0.00022191,2]
[337197196,1725497458076,-500.0,0.00022191,2]
[337197198,1725497458086,-500.66,0.00022191,2]
[337197200,1725497458096,-500.0,0.00022191,2]
[337197202,1725497458105,-500.0,0.00022191,2]
[337197204,1725497458115,-529.85,0.00022191,2]
[337197206,1725497458125,-501.84954157,0.00022191,2]
[337197208,1725497458135,-2218.0,0.00022191,2]
[337197210,1725497458145,-500.0,0.00022191,2]
[337197211,1725497458155,-500.0,0.00022191,2]
[337197212,1725497458164,-1377.71,0.00022191,2]
[337197213,1725497458174,-638.65,0.00022191,2]
[337197214,1725497458183,-500.0,0.00022191,2]
[337197215,1725497458193,-500.0,0.00022191,2]
[337197216,1725497458203,-1445.4,0.00022191,2]
[337197217,1725497458212,-500.0,0.00022191,2]
[337197218,1725497458222,-962.88,0.00022191,2]
[337197219,1725497458232,-500.0,0.00022191,2]
[337197220,1725497458242,-505.4159429,0.00022191,2]
[337197221,1725497458251,-500.0,0.00022191,2]
[337197222,1725497458260,-500.0,0.00022191,2]
[337197224,1725497458270,-1371.32,0.00022191,2]
[337197226,1725497458279,-500.0,0.00022191,2]
[337197228,1725497458288,-150.112233,0.000222,2]
[337197230,1725497458298,-302.36509981,0.0002222,2]
[337197232,1725497458308,-302.33493269,0.0002222,2]
[337197234,1725497458317,-155.0,0.0002226,7]
[337197236,1725497458327,-394.1964392,0.00022329,2]
[337197238,1725497458336,-3282.96,0.0002234,3]
[337197240,1725497458345,-1641.48,0.0002234,3]
[337197242,1725497458354,-1094.32,0.0002234,3]
[337197244,1725497458364,-547.16,0.0002234,3]
[337197246,1725497458374,-474.39872705,0.00022398,2]
[337197249,1725497458384,-67865.96501811,0.00022422,2]
[337197251,1725497458393,-302.36509981,0.0002244,2]
[337197253,1725497458403,-302.33493269,0.0002244,2]
[337197255,1725497458414,-500.0,0.00022465,2]
[337197257,1725497458426,-500.0,0.00022465,2]
[337197259,1725497458437,-364.36863674,0.00022465,2]
[337197261,1725497458447,-500.0,0.00022465,2]
[337197263,1725497458457,-500.0,0.00022465,2]
[337197265,1725497458467,-500.0,0.00022465,2]
[337197267,1725497458477,-501.56991125,0.00022465,2]
[337197269,1725497458487,-1238.32,0.00022465,2]
[337197272,1725497458499,-500.0,0.00022465,2]
[337197274,1725497458510,-500.0,0.00022465,2]
[337197276,1725497458519,-500.0,0.00022465,2]
[337197278,1725497458529,-500.0,0.00022465,2]
[337197280,1725497458540,-500.0,0.00022465,2]
[337197282,1725497458550,-500.0,0.00022465,2]
[337197283,1725497458560,-500.0,0.00022465,2]
[337197285,1725497458569,-500.0,0.00022465,2]
[337197287,1725497458579,-500.0,0.00022465,2]
[337197289,1725497458588,-442.86,0.00022465,2]
[337197291,1725497458598,-500.0,0.00022465,2]
[337197293,1725497458607,-500.0,0.00022465,2]
[337197295,1725497458617,-500.0,0.00022465,2]
[337197297,1725497458626,-500.0,0.00022465,2]
[337197299,1725497458635,-308.24825899,0.00022465,2]
[337197301,1725497458645,-500.0,0.00022465,2]
[337197303,1725497458654,-500.0,0.00022465,2]
[337197305,1725497458663,-500.0,0.00022465,2]
[337197307,1725497458672,-500.0,0.00022465,2]
[337197309,1725497458682,-515.67676152,0.00022465,2]
[337197312,1725497458692,-500.0,0.00022465,2]
[337197314,1725497458701,-500.0,0.00022465,2]
[337197316,1725497458711,-500.0,0.00022465,2]
[337197318,1725497458723,-500.0,0.00022465,2]
[337197320,1725497458734,-500.0,0.00022465,2]
[337197321,1725497458743,-959.99,0.00022465,2]
[337197324,1725497458753,-500.0,0.00022465,2]
[337197326,1725497458763,-500.0,0.00022465,2]
[337197328,1725497458772,-647.23,0.00022465,2]
[337197330,1725497458781,-553.11,0.00022465,2]
[337197332,1725497458791,-262.4303417,0.00022465,2]
[337197333,1725497458801,-500.70965813,0.00022465,2]
[337197335,1725497458811,-500.0,0.00022465,2]
[337197338,1725497458821,-500.0,0.00022465,2]
[337197340,1725497458830,-500.0,0.00022465,2]
[337197342,1725497458840,-500.0,0.00022465,2]
[337197344,1725497458850,-500.0,0.00022465,2]
[337197346,1725497458860,-500.0,0.00022465,2]
[337197348,1725497458869,-500.0,0.00022465,2]
[337197350,1725497458879,-1011.73,0.00022465,2]
[337197351,1725497458888,-500.0,0.00022465,2]
[337197353,1725497458898,-500.0,0.00022465,2]
[337197355,1725497458908,-500.0,0.00022465,2]
[337197358,1725497458918,-546.57,0.00022465,2]
[337197360,1725497458928,-500.0,0.00022465,2]
[337197361,1725497458938,-500.0,0.00022465,2]
[337197364,1725497458947,-500.0,0.00022465,2]
[337197365,1725497458957,-500.0,0.00022465,2]
[337197367,1725497458966,-500.0,0.00022465,2]
[337197369,1725497458978,-500.0,0.00022465,2]
[337197371,1725497458987,-500.0,0.00022465,2]
[337197373,1725497458996,-467.94931955,0.00022465,2]
[337197375,1725497459008,-500.0,0.00022465,2]
[337197377,1725497459018,-500.0,0.00022465,2]
[337197379,1725497459027,-500.0,0.00022465,2]
[337197381,1725497459037,-500.0,0.00022465,2]
[337197383,1725497459046,-500.0,0.00022465,2]
[337197385,1725497459055,-500.0,0.00022465,2]
[337197387,1725497459065,-500.0,0.00022465,2]
[337197389,1725497459074,-1048.1,0.00022465,2]
[337197391,1725497459083,-153.35644694,0.00022465,2]
[337197393,1725497459094,-604.55,0.00022465,2]
[337197395,1725497459103,-500.0,0.00022465,2]
[337197404,1725497459171,-500.0,0.00022465,2]
[337197406,1725497459180,-500.0,0.00022465,2]
[337197408,1725497459189,-500.0,0.00022465,2]
[337197410,1725497459199,-603.8,0.00022465,2]
[337197412,1725497459208,-342.65135497,0.00022465,2]
[337197414,1725497459218,-500.0,0.00022465,2]
[337197416,1725497459228,-500.0,0.00022465,2]
[337197418,1725497459237,-500.0,0.00022465,2]
[337197420,1725497459246,-503.14,0.00022465,2]
[337197421,1725497459255,-500.0,0.00022465,2]
[337197423,1725497459264,-918.63,0.00022465,2]
[337197425,1725497459273,-500.0,0.00022465,2]
[337197427,1725497459282,-526.09870613,0.00022465,2]
[337197429,1725497459291,-505.80706238,0.00022465,2]
[337197431,1725497459301,-500.0,0.00022465,2]
[337197433,1725497459310,-2046.37,0.00022465,2]
[337197435,1725497459320,-443.44842892,0.00022465,2]
[337197438,1725497459329,-545.86052914,0.00022465,2]
[337197439,1725497459338,-500.0,0.00022465,2]
[337197441,1725497459348,-500.0,0.00022465,2]
[337197443,1725497459357,-500.0,0.00022465,2]
[337197445,1725497459366,-500.0,0.00022465,2]
[337197447,1725497459375,-500.0,0.00022465,2]
[337197449,1725497459385,-500.0,0.00022465,2]
[337197451,1725497459394,-826.07,0.00022465,2]
[337197453,1725497459403,-500.0,0.00022465,2]
[337197456,1725497459414,-534.87,0.00022465,2]
[337197458,1725497459424,-500.0,0.00022465,2]
[337197459,1725497459433,-500.0,0.00022465,2]
[337197462,1725497459443,-500.0,0.00022465,2]
[337197464,1725497459454,-500.0,0.00022465,2]
[337197466,1725497459463,-1024.79,0.00022465,2]
[337197468,1725497459473,-506.66094691,0.00022465,2]
[337197470,1725497459483,-506.18189142,0.00022465,2]
[337197472,1725497459492,-500.0,0.00022465,2]
[337197474,1725497459501,-722.07,0.00022465,2]
[337197476,1725497459510,-1393.53,0.00022465,2]
[337197478,1725497459520,-500.0,0.00022465,2]
[337197480,1725497459529,-500.0,0.00022465,2]
[337197482,1725497459542,-482.84045277,0.00022465,2]
[337197484,1725497459551,-500.0,0.00022465,2]
[337197486,1725497459560,-500.0,0.00022465,2]
[337197488,1725497459570,-946.13,0.00022465,2]
[337197490,1725497459579,-500.0,0.00022465,2]
[337197491,1725497459588,-500.0,0.00022465,2]
[337197493,1725497459598,-419.62170574,0.00022465,2]
[337197495,1725497459607,-500.0,0.00022465,2]
[337197497,1725497459617,-500.0,0.00022465,2]
[337197499,1725497459626,-500.0,0.00022465,2]
[337197501,1725497459638,-500.0,0.00022465,2]
[337197503,1725497459649,-500.0,0.00022465,2]